fUSD/lending_fUSD_20260226
["ID","MTS","AMOUNT","RATE_DAILY","PERIOD"]
[406715870,1772116242496,-151.0,0.0001,2]
[406715871,1772116242512,-151.0,0.0001,2]
[406715872,1772116242524,-151.0,0.0001,2]
[406715873,1772116242534,-151.0,0.0001,2]
[406715874,1772116242545,-151.0,0.0001,2]
[406715875,1772116242556,-151.0,0.0001,2]
[406715876,1772116242567,-151.0,0.0001,2]
[406715877,1772116242576,-151.0,0.0001,2]
[406715878,1772116242587,-151.0,0.0001,2]
[406715879,1772116242596,-151.0,0.0001,2]
[406715880,1772116242606,-245.17260832,0.0001,2]
[406715881,1772116242616,-713.74871488,0.0001,2]
[406715883,1772116242626,-350.0,0.00010181,2]
[406715885,1772116242636,-158.186448,0.00010206,2]
[406715886,1772116242646,-1012.036554,0.00010206,2]
[406715888,1772116242655,-1624.514787,0.00010206,2]
[406715890,1772116242666,-350.0,0.00010261,2]
[406715891,1772116242676,-1000.0,0.00010274,2]
[406715892,1772116242686,-995.28114408,0.00010281,2]
[406715893,1772116242695,-500.0,0.000103,2]
[406715894,1772116242705,-500.0,0.000103,2]
[406715895,1772116242714,-500.0,0.000103,2]
[406715896,1772116242724,-594.04156801,0.000103,2]
[406715897,1772116242734,-739.09040601,0.000103,2]
[406715898,1772116242743,-802.50664403,0.000103,2]
[406715899,1772116242756,-350.0,0.00010346,2]
[406715900,1772116242768,-137550.62068451,0.0001048,2]
[406715901,1772116242778,-350.0,0.00010546,2]
[406715902,1772116242788,-1000.0,0.0001057,2]
[406715903,1772116242798,-500.0,0.0001057,2]
[406715904,1772116242807,-373.93126017,0.00010583,2]
[406715905,1772116242816,-350.0,0.00010715,2]
[406715906,1772116242826,-350.0,0.00010737,2]
[406715907,1772116242836,-1650.0,0.00010789,2]
[406715908,1772116242845,-1535.38059594,0.000108,2]
[406715909,1772116242855,-2906.25361501,0.000108,2]
[406715910,1772116242865,-500.53906536,0.00010829,2]
[406715911,1772116242874,-500.28462042,0.00010829,2]
[406715912,1772116242884,-158.6599059,0.00010829,2]
[406715913,1772116242894,-500.0,0.00010829,2]
[406715914,1772116242904,-500.72325527,0.00010829,2]
[406715915,1772116242913,-500.0,0.00010829,2]
[406715916,1772116242923,-500.0,0.00010829,2]
[406715917,1772116242932,-500.0,0.00010829,2]
[406715918,1772116242942,-150.0,0.00010839,2]
[406715919,1772116242951,-1833.85447521,0.00010877,2]
[406715920,1772116242961,-173.95657067,0.00010892,2]
[406715921,1772116242970,-160.0,0.00010892,2]
[406715922,1772116242980,-4700.0,0.000109,3]
[406715923,1772116242989,-986.84,0.00010903,2]
[406715924,1772116242998,-166.66,0.00010959,2]
[406715925,1772116243011,-150.0,0.00010959,2]
[406715926,1772116243021,-15447.06,0.00010959,2]
[406715927,1772116243031,-412.37,0.00010959,2]
[406715928,1772116243042,-151.0,0.00010996,2]
[406715929,1772116243051,-151.0,0.00010999,2]
[406715930,1772116243061,-151.0,0.00010999,2]
[406715931,1772116243071,-294.49398959,0.00010999,2]
[406715932,1772116243080,-2641.30302155,0.00010999,2]
[406715933,1772116243090,-465.42516497,0.00010999,2]
[406715934,1772116243099,-21846.65485425,0.00010999,2]
[406715935,1772116243109,-300.0,0.00011,2]
[406715936,1772116243119,-693.94657191,0.00011,2]
[406715937,1772116243129,-350.0,0.00011057,2]
[406715938,1772116243138,-166.66,0.00011068,2]
[406715939,1772116243147,-1000.0,0.0001107,2]
[406715940,1772116243161,-500.0,0.0001107,2]
[406715941,1772116243171,-500.0,0.0001107,2]
[406715942,1772116243180,-1000.0,0.0001107,2]
[406715943,1772116243190,-11259.76176716,0.00011099,2]
[406715944,1772116243199,-11259.76176711,0.00011099,2]
[406715945,1772116243208,-11259.76176711,0.00011099,2]
[406715946,1772116243217,-11259.76176711,0.00011099,2]
[406715947,1772116243226,-27017.80659471,0.00011099,2]
[406715948,1772116243235,-27017.80659463,0.00011099,2]
[406715949,1772116243244,-27017.80659463,0.00011099,2]
[406715950,1772116243257,-27017.80659463,0.00011099,2]
[406715951,1772116243266,-150.0,0.00011099,2]
[406715952,1772116243275,-4595.26836779,0.00011099,2]
[406715953,1772116243285,-150.0,0.00011099,2]
[406715954,1772116243294,-47178.42821437,0.00011099,2]
[406715955,1772116243303,-150.0,0.00011099,2]
[406715957,1772116243313,-2679.14252396,0.00011099,2]
[406715958,1772116243323,-151.0,0.00011099,2]
[406715961,1772116243333,-151.0,0.00011099,2]
[406715962,1772116243343,-151.0,0.00011099,2]
[406715965,1772116243352,-151.0,0.00011099,2]
[406715968,1772116243361,-153.208343,0.00011099,2]
[406715971,1772116243371,-151.0,0.00011099,2]
[406715973,1772116243380,-151.0,0.00011099,2]
[406715975,1772116243390,-151.0,0.00011099,2]
[406715977,1772116243400,-151.0,0.00011099,2]
[406715979,1772116243409,-271.472129,0.00011099,2]
[406715981,1772116243419,-271.472129,0.00011099,2]
[406715983,1772116243429,-271.472129,0.00011099,2]
[406715985,1772116243439,-271.472129,0.00011099,2]
[406715987,1772116243448,-151.0,0.00011099,2]
[406715989,1772116243458,-151.026065,0.00011099,2]
[406715991,1772116243467,-151.0,0.00011099,2]
[406715993,1772116243477,-151.0,0.00011099,2]
[406715995,1772116243486,-22854.0,0.000111,2]
[406715997,1772116243495,-166.66,0.00011178,2]
[406715999,1772116243508,-1800.0,0.000112,2]
[406716001,1772116243523,-350.0,0.0001121,3]
[406716003,1772116243532,-5771.18,0.00011233,2]
[406716005,1772116243541,-150.0,0.00011233,2]
[406716007,1772116243554,-500.0,0.00011251,2]
[406716009,1772116243565,-500.0,0.00011251,2]
[406716011,1772116243575,-700.0,0.00011251,2]
[406716013,1772116243584,-166.66,0.00011288,2]
[406716015,1772116243594,-1000.0,0.00011301,2]
[406716017,1772116243603,-1034.1174351,0.00011331,2]
[406716019,1772116243612,-350.0,0.00011372,2]
[406716021,1772116243622,-1051.46301601,0.00011377,2]
[406716023,1772116243632,-1008.26998517,0.00011377,2]
[406716025,1772116243641,-1000.0,0.00011377,2]
[406716027,1772116243652,-1000.0,0.00011377,2]
[406716029,1772116243662,-1000.0,0.00011395,2]
[406716031,1772116243671,-166.66,0.00011397,2]
[406716033,1772116243681,-151.0,0.00011398,2]
[406716035,1772116243690,-350.0,0.00011401,3]
[406716037,1772116243699,-412.37,0.00011416,2]
[406716039,1772116243709,-500.0,0.0001147,2]
[406716041,1772116243718,-1000.0,0.0001147,2]
[406716043,1772116243728,-150.0,0.000115,2]
[406716045,1772116243737,-5531.0,0.000115,3]
[406716047,1772116243747,-166.66,0.00011507,2]
[406716049,1772116243759,-2903.08,0.00011507,2]
[406716051,1772116243769,-350.0,0.00011535,2]
[406716053,1772116243778,-995.28114407,0.00011551,2]
[406716055,1772116243788,-618.0,0.00011598,2]
[406716057,1772116243797,-1340.0,0.00011598,2]
[406716059,1772116243807,-11259.76176711,0.00011677,2]
[406716061,1772116243816,-151.0,0.0001172,2]
[406716063,1772116243826,-234.465008,0.0001172,2]
[406716065,1772116243835,-27017.80659463,0.0001172,2]
[406716067,1772116243844,-204.48,0.00011729,2]
[406716069,1772116243855,-150.0,0.00011839,2]
[406716071,1772116243865,-412.37,0.00011872,2]
[406716073,1772116243874,-5531.0,0.000119,5]
[406716075,1772116243883,-200.09788063,0.00011924,2]
[406716077,1772116243893,-1500.0,0.00011924,2]
[406716079,1772116243903,-204.46,0.00011966,2]
[406716081,1772116243912,-1000.0,0.00012,2]
[406716083,1772116243922,-152.0,0.00012,3]
[406716085,1772116243931,-10000.0,0.000121,2]
[406716087,1772116243940,-151.0,0.000121,2]
[406716089,1772116243950,-151.0,0.000121,2]
[406716091,1772116243960,-151.0,0.000121,2]
[406716093,1772116243969,-151.0,0.000121,2]
[406716095,1772116243979,-271.472129,0.000121,2]
[406716097,1772116243988,-271.472129,0.000121,2]
[406716099,1772116243997,-271.472129,0.000121,2]
[406716101,1772116244010,-271.472129,0.000121,2]
[406716103,1772116244021,-986.84,0.00012115,2]
[406716105,1772116244030,-1965.0,0.000122,3]
[406716107,1772116244039,-245.17260832,0.000123,2]
[406716109,1772116244048,-1000.0,0.00012329,2]
[406716111,1772116244059,-412.37,0.00012329,2]
[406716113,1772116244068,-151.0,0.00012329,2]
[406716115,1772116244078,-2000.0,0.00012472,2]
[406716117,1772116244087,-500.0,0.00012621,2]
[406716119,1772116244096,-500.0,0.00012621,2]
[406716121,1772116244105,-700.0,0.00012621,2]
[406716123,1772116244114,-1277.0,0.00012647,2]
[406716125,1772116244123,-1211.0,0.00012647,2]
[406716138,1772116244239,-920.0,0.00012647,2]
[406716140,1772116244249,-152.838506,0.00012647,2]
[406716141,1772116244263,-151.0,0.00012647,2]
[406716142,1772116244272,-152.0,0.0001275,4]
[406716143,1772116244282,-995.28114407,0.00012821,2]
[406716144,1772116244291,-150.0,0.00012839,2]
[406716145,1772116244301,-208.88429413,0.00012863,2]
[406716146,1772116244312,-151.0,0.0001289,2]
[406716147,1772116244322,-151.0,0.0001289,2]
[406716148,1772116244331,-500.0,0.0001289,2]
[406716149,1772116244341,-500.0,0.0001289,2]
[406716150,1772116244351,-500.0,0.0001289,2]
[406716151,1772116244360,-500.0,0.0001289,2]
[406716152,1772116244370,-500.0,0.0001289,2]
[406716153,1772116244379,-500.0,0.0001289,2]
[406716154,1772116244388,-500.0,0.0001289,2]
[406716155,1772116244397,-500.0,0.0001289,2]
[406716156,1772116244407,-500.0,0.0001289,2]
[406716157,1772116244416,-500.0,0.0001289,2]
[406716158,1772116244425,-500.0,0.0001289,2]
[406716159,1772116244435,-500.0,0.0001289,2]
[406716160,1772116244445,-500.0,0.0001289,2]
[406716161,1772116244455,-500.0,0.0001289,2]
[406716163,1772116244465,-500.0,0.0001289,2]
[406716164,1772116244475,-500.0,0.0001289,2]
[406716165,1772116244484,-500.0,0.0001289,2]
[406716166,1772116244494,-500.0,0.0001289,2]
[406716167,1772116244506,-500.0,0.0001289,2]
[406716168,1772116244521,-501.06724534,0.0001289,2]
[406716169,1772116244531,-500.0,0.0001289,2]
[406716170,1772116244541,-500.0,0.0001289,2]
[406716171,1772116244551,-500.0,0.0001289,2]
[406716172,1772116244561,-500.0,0.0001289,2]
[406716173,1772116244570,-500.0,0.0001289,2]
[406716174,1772116244579,-500.0,0.0001289,2]
[406716175,1772116244590,-500.0,0.0001289,2]
[406716176,1772116244600,-500.0,0.0001289,2]
[406716177,1772116244609,-500.0,0.0001289,2]
[406716178,1772116244618,-500.0,0.0001289,2]
[406716179,1772116244627,-500.0,0.0001289,2]
[406716180,1772116244636,-500.0,0.0001289,2]
[406716181,1772116244646,-500.0,0.0001289,2]
[406716182,1772116244655,-500.0,0.0001289,2]
[406716183,1772116244665,-500.0,0.0001289,2]
[406716184,1772116244674,-500.0,0.0001289,2]
[406716185,1772116244683,-500.0,0.0001289,2]
[406716186,1772116244693,-500.0,0.0001289,2]
[406716187,1772116244702,-500.0,0.0001289,2]
[406716188,1772116244712,-500.0,0.0001289,2]
[406716189,1772116244721,-500.0,0.0001289,2]
[406716190,1772116244730,-500.0,0.0001289,2]
[406716191,1772116244739,-500.0,0.0001289,2]
[406716192,1772116244752,-500.0,0.0001289,2]
[406716193,1772116244767,-500.0,0.0001289,2]
[406716194,1772116244777,-504.90043007,0.0001289,2]
[406716196,1772116244786,-500.0,0.0001289,2]
[406716197,1772116244796,-626.24566997,0.0001289,2]
[406716198,1772116244806,-500.0,0.0001289,2]
[406716199,1772116244815,-500.0,0.0001289,2]
[406716200,1772116244824,-226.12454466,0.0001289,2]
[406716201,1772116244834,-173.7910009,0.0001289,2]
[406716202,1772116244843,-500.0,0.0001289,2]
[406716203,1772116244852,-500.0,0.0001289,2]
[406716204,1772116244862,-500.76827377,0.0001289,2]
[406716205,1772116244872,-500.0,0.0001289,2]
[406716206,1772116244882,-500.0,0.0001289,2]
[406716207,1772116244891,-500.0,0.0001289,2]
[406716208,1772116244901,-500.0,0.0001289,2]
[406716209,1772116244911,-500.0,0.0001289,2]
[406716210,1772116244921,-500.0,0.0001289,2]
[406716211,1772116244930,-500.0,0.0001289,2]
[406716212,1772116244940,-500.0,0.0001289,2]
[406716213,1772116244949,-500.0,0.0001289,2]
[406716214,1772116244958,-500.0,0.0001289,2]
[406716215,1772116244967,-500.0,0.0001289,2]
[406716216,1772116244977,-500.0,0.0001289,2]
[406716217,1772116244986,-500.0,0.0001289,2]
[406716218,1772116244995,-500.0,0.0001289,2]
[406716219,1772116245004,-500.0,0.0001289,2]
[406716220,1772116245018,-500.0,0.0001289,2]
[406716221,1772116245027,-500.0,0.0001289,2]
[406716222,1772116245036,-500.0,0.0001289,2]
[406716223,1772116245046,-500.0,0.0001289,2]
[406716224,1772116245056,-500.0,0.0001289,2]
[406716225,1772116245066,-500.0,0.0001289,2]
[406716226,1772116245075,-500.0,0.0001289,2]
[406716227,1772116245084,-502.38608045,0.0001289,2]
[406716228,1772116245095,-500.0,0.0001289,2]
[406716229,1772116245104,-500.0,0.0001289,2]
[406716230,1772116245113,-500.0,0.0001289,2]
[406716231,1772116245123,-500.0,0.0001289,2]
[406716232,1772116245132,-500.0,0.0001289,2]
[406716233,1772116245141,-500.0,0.0001289,2]
[406716234,1772116245150,-500.0,0.0001289,2]
[406716235,1772116245159,-500.0,0.0001289,2]
[406716236,1772116245168,-500.0,0.0001289,2]
[406716237,1772116245177,-500.0,0.0001289,2]
[406716238,1772116245187,-500.0,0.0001289,2]
[406716239,1772116245197,-500.0,0.0001289,2]
[406716240,1772116245206,-500.0,0.0001289,2]
[406716241,1772116245216,-500.0,0.0001289,2]
[406716242,1772116245225,-500.0,0.0001289,2]
[406716243,1772116245235,-670.0,0.0001289,2]
[406716244,1772116245244,-500.0,0.0001289,2]
[406716245,1772116245256,-500.17504357,0.0001289,2]
[406716246,1772116245266,-150.25022043,0.0001289,2]
[406716247,1772116245275,-500.0,0.0001289,2]
[406716248,1772116245285,-500.0,0.0001289,2]
[406716249,1772116245294,-500.0,0.0001289,2]
[406716250,1772116245303,-500.0,0.0001289,2]
[406716251,1772116245313,-500.0,0.0001289,2]
[406716252,1772116245322,-500.0,0.0001289,2]
[406716253,1772116245331,-500.0,0.0001289,2]
[406716254,1772116245340,-500.0,0.0001289,2]
[406716255,1772116245349,-500.0,0.0001289,2]
[406716256,1772116245359,-500.0,0.0001289,2]
[406716257,1772116245368,-152.0758102,0.0001289,2]
[406716258,1772116245378,-500.0,0.0001289,2]
[406716259,1772116245387,-500.0,0.0001289,2]
[406716260,1772116245396,-500.0,0.0001289,2]
[406716261,1772116245405,-500.0,0.0001289,2]
[406716262,1772116245415,-500.0,0.0001289,2]
[406716263,1772116245424,-500.0,0.0001289,2]
[406716264,1772116245433,-500.0,0.0001289,2]
[406716265,1772116245442,-500.0,0.0001289,2]
[406716266,1772116245452,-500.0,0.0001289,2]
[406716267,1772116245461,-500.0,0.0001289,2]
[406716268,1772116245470,-500.0,0.0001289,2]
[406716269,1772116245480,-500.0,0.0001289,2]
[406716270,1772116245489,-500.0,0.0001289,2]
[406716271,1772116245499,-500.0,0.0001289,2]
[406716272,1772116245512,-572.5782841,0.0001289,2]
[406716273,1772116245527,-500.0,0.0001289,2]
[406716274,1772116245536,-500.0,0.0001289,2]
[406716275,1772116245546,-500.0,0.0001289,2]
[406716276,1772116245555,-500.0,0.0001289,2]
[406716277,1772116245567,-500.0,0.0001289,2]
[406716278,1772116245576,-500.0,0.0001289,2]
[406716279,1772116245586,-500.0,0.0001289,2]
[406716280,1772116245595,-500.0,0.0001289,2]
[406716281,1772116245607,-500.0,0.0001289,2]
[406716282,1772116245616,-500.0,0.0001289,2]
[406716283,1772116245626,-500.0,0.0001289,2]
[406716284,1772116245635,-500.0,0.0001289,2]
[406716285,1772116245645,-632.45598044,0.0001289,2]
[406716286,1772116245655,-524.23267642,0.0001289,2]
[406716287,1772116245664,-500.0,0.0001289,2]
[406716288,1772116245673,-500.0,0.0001289,2]
[406716289,1772116245682,-500.0,0.0001289,2]
[406716290,1772116245692,-500.0,0.0001289,2]
[406716291,1772116245701,-500.0,0.0001289,2]
[406716292,1772116245710,-500.0,0.0001289,2]
[406716293,1772116245719,-500.0,0.0001289,2]
[406716294,1772116245728,-500.0,0.0001289,2]
[406716295,1772116245737,-500.0,0.0001289,2]
[406716296,1772116245746,-500.0,0.0001289,2]
[406716297,1772116245850,-500.0,0.0001289,2]
[406716298,1772116245860,-500.0,0.0001289,2]
[406716299,1772116245871,-500.0,0.0001289,2]
[406716300,1772116245881,-500.0,0.0001289,2]
[406716301,1772116245891,-585.91467153,0.0001289,2]
[406716302,1772116245900,-619.49571842,0.0001289,2]
[406716303,1772116245910,-500.0,0.0001289,2]
[406716304,1772116245920,-500.0,0.0001289,2]
[406716305,1772116245930,-500.0,0.0001289,2]
[406716306,1772116245940,-500.83237453,0.0001289,2]
[406716307,1772116245950,-500.0,0.0001289,2]
[406716308,1772116245961,-500.0,0.0001289,2]
[406716309,1772116245971,-500.0,0.0001289,2]
[406716310,1772116245982,-500.0,0.0001289,2]
[406716311,1772116245994,-500.0,0.0001289,2]
[406716312,1772116246005,-500.0,0.0001289,2]
[406716313,1772116246025,-500.0,0.0001289,2]
[406716314,1772116246036,-500.0,0.0001289,2]
[406716315,1772116246047,-500.0,0.0001289,2]
[406716316,1772116246058,-500.0,0.0001289,2]
[406716317,1772116246069,-500.0,0.0001289,2]
[406716318,1772116246079,-500.0,0.0001289,2]
[406716319,1772116246090,-500.0,0.0001289,2]
[406716320,1772116246100,-500.0,0.0001289,2]
[406716321,1772116246110,-500.0,0.0001289,2]
[406716322,1772116246120,-500.0,0.0001289,2]
[406716323,1772116246130,-500.0,0.0001289,2]
[406716324,1772116246140,-500.0,0.0001289,2]
[406716325,1772116246150,-500.0,0.0001289,2]
[406716326,1772116246160,-500.0,0.0001289,2]
[406716327,1772116246170,-500.0,0.0001289,2]
[406716328,1772116246179,-500.0,0.0001289,2]
[406716329,1772116246189,-500.0,0.0001289,2]
[406716330,1772116246199,-500.0,0.0001289,2]
[406716331,1772116246208,-500.0,0.0001289,2]
[406716332,1772116246218,-500.0,0.0001289,2]
[406716333,1772116246227,-500.0,0.0001289,2]
[406716334,1772116246237,-500.0,0.0001289,2]
[406716335,1772116246246,-500.0,0.0001289,2]
[406716336,1772116246262,-500.0,0.0001289,2]
[406716337,1772116246273,-500.98925879,0.0001289,2]
[406716338,1772116246284,-500.0,0.0001289,2]
[406716339,1772116246294,-500.0,0.0001289,2]
[406716340,1772116246306,-502.76700379,0.0001289,2]
[406716341,1772116246317,-500.0,0.0001289,2]
[406716342,1772116246327,-500.0,0.0001289,2]
[406716343,1772116246337,-500.0,0.0001289,2]
[406716345,1772116246347,-500.0,0.0001289,2]
[406716346,1772116246357,-500.0,0.0001289,2]
[406716347,1772116246366,-500.0,0.0001289,2]
[406716348,1772116246376,-500.0,0.0001289,2]
[406716349,1772116246385,-500.0,0.0001289,2]
[406716350,1772116246395,-500.0,0.0001289,2]
[406716351,1772116246405,-500.0,0.0001289,2]
[406716352,1772116246414,-500.0,0.0001289,2]
[406716353,1772116246424,-500.0,0.0001289,2]
[406716354,1772116246433,-500.0,0.0001289,2]
[406716355,1772116246442,-500.0,0.0001289,2]
[406716356,1772116246451,-500.0,0.0001289,2]
[406716357,1772116246460,-500.0,0.0001289,2]
[406716358,1772116246469,-500.0,0.0001289,2]
[406716359,1772116246479,-500.0,0.0001289,2]
[406716360,1772116246488,-500.0,0.0001289,2]
[406716361,1772116246497,-500.0,0.0001289,2]
[406716362,1772116246511,-500.0,0.0001289,2]
[406716363,1772116246527,-500.0,0.0001289,2]
[406716364,1772116246537,-500.0,0.0001289,2]
[406716365,1772116246546,-500.0,0.0001289,2]
[406716366,1772116246555,-500.0,0.0001289,2]
[406716367,1772116246566,-500.0,0.0001289,2]
[406716368,1772116246575,-500.0,0.0001289,2]
[406716369,1772116246584,-500.0,0.0001289,2]
[406716370,1772116246594,-500.0,0.0001289,2]
[406716371,1772116246604,-500.0,0.0001289,2]
[406716372,1772116246613,-500.0,0.0001289,2]
[406716373,1772116246623,-500.0,0.0001289,2]
[406716374,1772116246633,-500.0,0.0001289,2]
[406716375,1772116246643,-500.0,0.0001289,2]
[406716376,1772116246654,-500.0,0.0001289,2]
[406716377,1772116246663,-500.0,0.0001289,2]
[406716378,1772116246673,-500.0,0.0001289,2]
[406716379,1772116246682,-500.0,0.0001289,2]
[406716380,1772116246691,-500.0,0.0001289,2]
[406716381,1772116246700,-603.47494797,0.0001289,2]
[406716382,1772116246710,-500.0,0.0001289,2]
[406716383,1772116246721,-500.0,0.0001289,2]
[406716384,1772116246732,-500.0,0.0001289,2]
[406716385,1772116246742,-500.0,0.0001289,2]
[406716386,1772116246752,-500.0,0.0001289,2]
[406716387,1772116246766,-500.0,0.0001289,2]
[406716388,1772116246776,-155.66439371,0.00012899,2]
[406716389,1772116246785,-11259.76176711,0.00012921,2]
[406716390,1772116246794,-27017.80659463,0.00012956,2]
[406716391,1772116246803,-151.0,0.00012997,2]
[406716392,1772116246812,-5628.56477834,0.00013,2]
[406716393,1772116246821,-2500.0,0.0001302,2]
[406716394,1772116246830,-986.84,0.00013326,2]
[406716395,1772116246839,-3240.0,0.00013425,2]
[406716396,1772116246849,-152.0,0.000135,5]
[406716397,1772116246859,-3000.0,0.00013568,2]
[406716398,1772116246868,-2698.85736045,0.0001358,2]
[406716399,1772116246878,-2361.418626,0.00013608,2]
[406716400,1772116246887,-3790.534503,0.00013608,2]
[406716401,1772116246896,-204.48,0.00013688,2]
[406716402,1772116246906,-500.0,0.00013698,2]
[406716403,1772116246915,-500.0,0.00013698,2]
[406716404,1772116246925,-500.0,0.00013698,2]
[406716405,1772116246935,-500.0,0.00013698,2]
[406716406,1772116246945,-500.0,0.00013698,2]
[406716407,1772116246954,-500.0,0.00013698,2]
[406716408,1772116246963,-500.0,0.00013698,2]
[406716409,1772116246973,-500.0,0.00013698,2]
[406716410,1772116246982,-500.0,0.00013698,2]
[406716411,1772116246991,-500.0,0.00013698,2]
[406716412,1772116247000,-500.0,0.00013698,2]
[406716413,1772116247013,-500.0,0.00013698,2]
[406716414,1772116247022,-500.0,0.00013698,2]
[406716415,1772116247032,-500.0,0.00013698,2]
[406716416,1772116247041,-500.0,0.00013698,2]
[406716417,1772116247050,-500.0,0.00013698,2]
[406716418,1772116247059,-500.0,0.00013698,2]
[406716419,1772116247068,-500.0,0.00013698,2]
[406716420,1772116247077,-500.0,0.00013698,2]
[406716421,1772116247089,-500.0,0.00013698,2]
[406716422,1772116247099,-500.0,0.00013698,2]
[406716423,1772116247109,-500.0,0.00013698,2]
[406716424,1772116247119,-500.0,0.00013698,2]
[406716425,1772116247128,-500.0,0.00013698,2]
[406716426,1772116247137,-384.80531288,0.00013698,2]
[406716427,1772116247146,-318.18597163,0.00013698,2]
[406716428,1772116247155,-500.0,0.00013698,2]
[406716429,1772116247165,-500.0,0.00013698,2]
[406716430,1772116247174,-500.0,0.00013698,2]
[406716431,1772116247183,-500.0,0.00013698,2]
[406716432,1772116247194,-500.0,0.00013698,2]
[406716433,1772116247205,-500.0,0.00013698,2]
[406716434,1772116247214,-500.0,0.00013698,2]
[406716435,1772116247223,-500.0,0.00013698,2]
[406716436,1772116247232,-500.0,0.00013698,2]
[406716437,1772116247242,-500.0,0.00013698,2]
[406716438,1772116247252,-500.0,0.00013698,2]
[406716439,1772116247267,-585.34193517,0.00013698,2]
[406716440,1772116247277,-524.20200789,0.00013698,2]
[406716441,1772116247286,-500.0,0.00013698,2]
[406716442,1772116247386,-500.0,0.00013698,3]
[406716443,1772116247396,-500.0,0.00013698,4]
[406716444,1772116247405,-500.0,0.00013698,5]
[406716445,1772116247415,-500.0,0.00013698,6]
[406716446,1772116247424,-500.0,0.00013698,7]
[406716447,1772116247433,-500.0,0.00013698,8]
[406716448,1772116247442,-500.0,0.00013698,9]
[406716449,1772116247451,-500.0,0.00013698,10]
[406716450,1772116247461,-500.0,0.00013698,11]
[406716451,1772116247471,-500.0,0.00013698,12]
[406716452,1772116247480,-500.0,0.00013698,13]
[406716453,1772116247489,-500.0,0.00013698,14]
[406716454,1772116247498,-500.0,0.00013698,15]
[406716455,1772116247511,-500.0,0.00013698,16]
[406716456,1772116247522,-500.0,0.00013698,17]
[406716457,1772116247532,-500.0,0.00013698,18]
[406716458,1772116247542,-500.0,0.00013698,19]
[406716459,1772116247554,-500.0,0.00013698,20]
[406716460,1772116247565,-224.40086961,0.00013699,2]
[406716461,1772116247574,-553.32,0.00013699,2]
[406716462,1772116247583,-200.0,0.00013699,2]
[406716463,1772116247592,-271.25,0.00013699,2]
[406716464,1772116247602,-226.04,0.00013699,2]
[406716465,1772116247611,-188.37,0.00013699,2]
[406716466,1772116247621,-156.97,0.00013699,2]
[406716467,1772116247630,-784.9,0.00013699,2]
[406716468,1772116247639,-151.0,0.00013699,2]
[406716469,1772116247649,-150.0,0.00013839,2]
[406716470,1772116247659,-500.0,0.00013873,21]
[406716471,1772116247669,-500.0,0.00013873,21]
[406716472,1772116247678,-500.0,0.00013873,21]
[406716473,1772116247687,-384.61162915,0.00013873,21]
[406716474,1772116247696,-500.0,0.00013991,2]
[406716475,1772116247706,-500.0,0.00013991,2]